Workbook

Sheet Cover Page
D1: North Midlands Operations Ltd
N2: Version 20.5
B8: Add photo
N13: Notes:
N14: This template may require adjustments by individual operators to meet specific reporting requirements as defined in the site Permit(s)
B29: Annual Performance Report 2022
B31: Permit EPR/HP3349QK
B33: Wolverhampton Energy from Waste Facility
B35: North Midlands Operations Limited
B39: Year: | C39: 2022
B41: Address: | C41: Crown Street, Wolverhampton, WV1 1QB
B43: Tel: | C43: 01179 372 811
B45: Email: | C45: emily.hingston@sol-environment.co.uk
B47: Prepared by: | C47: Emily Hingston | F47: Position: | G47: Consultant
B49: Approved by: | C49: Kate Harrop | F49: Position: | G49: Quality & Environment Manager
B51: Version: | C51: 1
B53: Issue Date: | C53: 2023-01-31

Sheet Contents
A1: =+'Cover Page'!$B$29 -> Annual Performance Report 2022 | E1: =+'Cover Page'!$B$33 -> Wolverhampton Energy from Waste Facility
A3: Contents | K3: Notes:
A4: Section | B4: Subject | H4: Page | K4: Section references and Page nos. to be inserted
B5: Facility Information | H5: 4 | K5: Sections and Subjects may require adjustment by individual operators to meet specific reporting requirements as defined in the sites Permit(s)
B6: Operational Summary | H6: 6
B7: Operational Data | H7: 5
B8: Performance Form 1 | H8: 7
B9: Energy Form 1 | H9: 8
B10: Permit Compliance | H10: 9
B11: Improvements | H11: 11
B12: Public Liasion | H12: 12
B13: Residue Quality - Optional | H13: 13
B14: Emissions to Water | H14: 14
B15: Emissions to Air (periodically monitored) | H15: 15
B16: Emissions to Air (continuously monitored) | H16: 16
B17: Hydrogen Chloride emissions | H17: 17
B18: Sulphur Dioxdie emsissions | H18: 18
B19: Oxides of Notrigen emissions | H19: 19
B20: Total Organic Carbon emissions | H20: 20
B21: Particulate Matter emissions | H21: 21
B22: Carbon Monoxide emissions | H22: 22
B23: Ammonia emissions | H23: 23
A26: Version Control
A27: Section | B27: Information | H27: Date
A34: Distribution
A35: Copy | B35: North Midlands Operations Limited | H35: No.
A44: This report is required under the Industrial Emissions Directive’s Article 55(2) requirements on reporting and public information on waste incineration plants and co-incineration plants, which require the operator to produce an annual report on the functioning and monitoring of the plant and make it available to the public.

Sheet Facility Info
A1: =+'Cover Page'!$B$29 -> Annual Performance Report 2022 | E1: =+'Cover Page'!$B$33 -> Wolverhampton Energy from Waste Facility
A3: Plant Description and Design | K3: Notes:
A5: The Wolverhampton Energy from Waste Facility utilises municipal waste to recover energy in the form of electricity and steam for export to the local grid. The facility processes approximately 118,000 tpa of waste in two combustion streams which operate using moving grate furnace systems with a combined capacity of up to 14 tonnes per hour. The heat produced during the incineration process is converted to electrical energy by generating steam in high-pressure boilers and expanding the steam through a steam turbine. When operating at full load, the plant will typically generate around 8 MW of electricity and, after satisfying its own power needs, exports approximately 7.1 MW of electricity to the grid. The installation provides a sustainable method of waste disposal and recovery, predominantly for the area within the administrative boundary of Wolverhampton Metropolitan Borough Council, with smaller quantities of wastes accepted, where capacity and demand exists, from other local authorities within the general vicinity of the plant. The process includes waste reception and storage, combustion, waste heat boilers, abatement of flue gases and the onsite storage of residues produced, namely IBA and APCr. The plant is operated in accordance with its Environmental Management System which is designed to meet the requirements of ISO14001:2004. | K5: Include summary of plant design, design capacity, no. of combustion lines, electrical and heat capacity and any other general information that describes the facility, its location and purpose
A20: Summary of Operational Processes and Procedures
A22: The principle components of the process comprise the following: Waste Acceptance and Reception: All waste is delivered directly into the fuel storage building and unloaded into the storage bunkers. When required, the waste is discharged onto the feedstock feed system, which delivers the waste into the furnaces via feed hoppers. All waste is accepted in accordance to the sites waste acceptance procedures. Combustion: The feed ram ensures that material falls into the moving grate within the furnace in a controlled manner. The moving grate ensures the waste is agitated as it progresses down the furnace to the ash discharge. Primary air is introduced beneath the grate causing the waste to go through a series of drying and burning areas. Secondary air is introduced from above the grate for combustion control. Auxiliary oil fired burners are located in the combustion chamber for start up and temperature control. The produced gases are resident in the combustion chamber at the 850C for at least 2seconds before transfer to the boiler , economiser and abatement plant. Electricity Generation: Each furnace is equipped with a 2-pass water tube boiler raising steam at 45 bar and 355C. The steam then passes to a Steam Turbine and Generator, which exports electricity to the grid. Flue-Gas Cleaning: Flue gas cleaning and pollution control consists of urea injection for De-NOx, semi-dry scrubbing using milk of lime spray for acid gas neutralisation and activated carbon powder injection for absorption and removal of heavy metals, dioxins, VOCs and other harmful substances. Bag filters remove particulates prior to emission to atmosphere via a single 76m high stack. Process effluent is treated onsite in the effluent treatment plant and recycled through the process. Any surplus is discharged to foul sewer. The Plant is regulated under the terms of a Permit issued by the Environment Agency (reference HP3349QK) which contains conditions to ensure that the requirements of the Waste Incineration Directive are incorporated and will be met. North Midlands Operations Ltd operates all of its sites under an Integrated Management System certified to ISO 14001:2015 (environmental management), ISO 9001:2015 (quality management), and ISO 45001:2018 (health and safety management). In terms of plant operation, the incineration processes have been designed against the background of a detailed assessment of the prevailing environmental conditions at the site location, and are based upon the Best Available Technology (BAT) as detailed both in the original Authorisation application and the application for the Permit issued under the Environmental Permitting (England and Wales) Regulations (As Amended). These include, but are not limited to, the following: • Well proven process plant developed specifically for incineration of municipal solid wastes • Efficient, comprehensive process control and monitoring systems to ensure optimum conditions for complete combustion of the wastes and to minimise emissions from the processes • Operations confined within buildings under slight negative pressure in order to contain and minimise emissions such as dust and odour • Qualified and experienced operating and maintenance personnel to implement procedures to ensure that the required high standards are maintained. Operating and Maintenance Procedures are established according to an internationally recognised system of quality assurance • Multi-stage high efficiency flue gas cleaning systems comprising deNOx Selective Non-Catalytic Reduction (SNCR) for the removal of oxides of nitrogen, activated carbon and lime semi-dry acid gas scrubbing for controlling acid gas, dioxins/furans and mercury emissions • Final stage flue gas abatement for particulate materials using fabric filtration • Residues from the combustion process and from the flue gas cleaning system disposed of by approved means, maximising recycling wherever possible • Waste water from the process is neutralised and recycled as far as is practicable to minimise the quantities released to sewers • Provision of bunds or double skinned vessels for storage of fuel and chemicals in order to prevent accidental and inappropriate discharge to the public sewers and watercourse. • The site is currently working towards compliance with the new Waste Incineration BAT Conclusions, to which compliance is required by 03.12.2023. | K22: Include summary of key processes and procedures such as (but not limited to); waste reception, control rooms, grate, bed and boiler, energy & heat generation, cooling systems, residue management, emission controls, health and safety systems, maintenance

Sheet Operational Data
A1: =+'Cover Page'!$B$29 -> Annual Performance Report 2022 | E1: Wolverhampton EfW
A3: Operational Data | K3: Notes:
A4: Plant Size | B4: 118000 | D4: tonnes pa | F4: MWth | G4: 8 | H4: MWe | K4: * - RDF to include SRF
A5: No. of combustion lines | B5: 2 | D5: No. of Turbines: | F5: 1 | K5: ** - CHP plants only
K6: 2020 updates include; heat in MWh, water in Litres, NCV in MJ/kg
A7: Waste types received | B7: Unit | C7: Q1 | D7: Q2 | E7: Q3 | F7: Q4 | G7: Year Total | H7: %
A8: Household / Local Authority | B8: tonnes | C8: 28056 | D8: 29182 | E8: 22671 | F8: 27242 | G8: =SUM(C8:F8) -> 107151 | H8: =IF(G8>0,G8/$G$15,"-") -> 0.9663341871 | K8: Availabiity Definition: 'the availability of a line is to be calculated by the number of hours the line reported Continuously Monitored emission levels to the Regulator through the calendar year divided by the total number of hours in that year. The overall plant availability is calculated as the Mean of all lines in the plant. For clarity this includes periods of Other Than Normal Operating Conditions (OTNOC) and abnormal operation.' Rationale: The primary function of an Energy from Waste facility is the disposal of waste. It follows therefore that the availability of a plant is determined by the period of time a facility spends undertaking this activity.
A9: Commercial & Industrial | C9: 828 | D9: 1594 | E9: 557 | F9: 754 | G9: =SUM(C9:F9) -> 3733 | H9: 0.03366581292
A10: Hazardous | C10: 0 | D10: 0 | E10: 0 | F10: 0 | G10: 0 | H10: -
A11: Clinical | C11: 0 | D11: 0 | E11: 0 | F11: 0 | G11: 0 | H11: -
A12: Waste wood (biomass) | C12: 0 | D12: 0 | E12: 0 | F12: 0 | G12: 0 | H12: -
A13: Refuse Derived Fuel * - H'hold/LA | C13: 0 | D13: 0 | E13: 0 | F13: 0 | G13: =SUM(C13:F13) -> 0 | H13: -
A14: Refuse Derived Fuel * - C&I | C14: 0 | D14: 0 | E14: 0 | F14: 0 | G14: 0 | H14: -
A15: Total waste received | C15: =SUM(C8:C14) -> 28884 | D15: =SUM(D8:D14) -> 30776 | E15: =SUM(E8:E14) -> 23228 | F15: =SUM(F8:F14) -> 27996 | G15: =SUM(G8:G14) -> 110884 | H15: 1
A16: Rejected Waste | G16: =SUM(C16:F16) -> 0 | H16: =IF(G16>0,G16/$G$15,"-") -> -
A17: Unprocessed waste transferred out | G17: =SUM(C17:F17) -> 0 | H17: =IF(G17>0,G17/$G$15,"-") -> -
A18: Total waste combusted | C18: 28553.05 | D18: 29650.82 | E18: 23112.92 | F18: 28599.86 | G18: =SUM(C18:F18) -> 109916.65 | H18: =IF(G18>0,G18/$G$15,"-") -> 0.9912760182
A20: Energy Useage / Export | B20: Unit | C20: Q1 | D20: Q2 | E20: Q3 | F20: Q4 | G20: Year Total | H20: KWh/te
A21: Power Generated | B21: MWh | C21: 13300 | D21: 12801 | E21: 9117 | F21: 10451 | G21: =SUM(C21:F21) -> 45669 | H21: =IF(G21>0,G21*1000/$G$18,"-") -> 415.4875535
A22: Power Exported | C22: 10978.9 | D22: 10441 | E22: 7277.7 | F22: 8482.8 | G22: =SUM(C22:F22) -> 37180.4 | H22: =IF(G22>0,G22*1000/$G$18,"-") -> 338.2599451
A23: Power Used on site | C23: 2321.1 | D23: 2360 | E23: 1839.3 | F23: 1968.2 | G23: =SUM(C23:F23) -> 8488.6 | H23: =IF(G23>0,G23*1000/$G$18,"-") -> 77.22760837
A24: Power Imported | C24: 41.1 | D24: 7.3 | E24: 166.7 | F24: 346.1 | G24: 561.2 | H24: =IF(G24>0,G24*1000/$G$18,"-") -> 5.1056869
A25: Parasitic Load | B25: % | C25: =IF(C21>0,1-C22/(C21+C24),"-") -> 0.1770618615 | D25: =IF(D21>0,1-D22/(D21+D24),"-") -> 0.1848254647 | E25: =IF(E21>0,1-E22/(E21+E24),"-") -> 0.2160776415 | F25: =IF(F21>0,1-F22/(F21+F24),"-") -> 0.2143445925 | G25: =IF(G21>0,1-G22/(G21+G24),"-") -> 0.1957551557
A26: Thermal Energy Produced ** | B26: MWh | G26: =SUM(C26:F26) -> 0 | H26: =IF(G26>0,G26*1000/$G$18,"-") -> -
A27: Thermal Energy Exported ** | G27: 0 | H27: =IF(G27>0,G27*1000/$G$18,"-") -> -
A28: R1 value | G28: Design / Operational / n/a
A30: Waste Disposal & Recovery | B30: Unit | C30: Q1 | D30: Q2 | E30: Q3 | F30: Q4 | G30: Year Total | H30: % inputs
A31: APC Residues - produced | B31: tonnes | C31: 882.58 | D31: 780.74 | E31: 645.32 | F31: 755.72 | G31: =SUM(C31:F31) -> 3064.36 | H31: =IF(G31>0,G31/$G$15,"-") -> 0.02763572743
A32: IBA - produced | C32: 4601.62 | D32: 5015.47 | E32: 3914.48 | F32: 444.79 | G32: 13976.36 | H32: =IF(G32>0,G32/$G$15,"-") -> 0.1260448757
A33: Metals recycling | C33: 381.58 | D33: 459.4 | E33: 298.38 | F33: 400.96 | G33: =SUM(C33:F33) -> 1540.32 | H33: =IF(G33>0,G33/$G$15,"-") -> 0.01389127376
A35: Raw Material Usage | B35: North Midlands Operations Limited | C35: Q1 | D35: Q2 | E35: Q3 | F35: Q4 | G35: Year Total | H35: kg or Ltr /te
A36: Mains Water | B36: M3 | C36: 21891 | D36: 21716 | E36: 19794 | F36: 24266 | G36: =SUM(C36:F36) -> 87667 | H36: =IF(G36>0,G36/$G$15,"-") -> 0.7906190253
A37: Other Water | B37: ltrs | C37: 0 | D37: 0 | E37: 0 | F37: 0 | G37: 0 | H37: =IF(G37>0,G37/$G$15,"-") -> -
A38: Ammonia | B38: kgs | C38: 0 | D38: 0 | E38: 0 | F38: 0 | G38: 0 | H38: =IF(G38>0,G38/$G$15,"-") -> -
A39: Urea | B39: kgs | C39: 70000 | D39: 69000 | E39: 38000 | F39: 37000 | G39: =SUM(C39:F39) -> 214000 | H39: =IF(G39>0,G39/$G$15,"-") -> 1.929944807
A40: Activated Carbon | B40: kgs | C40: 3000 | D40: 2000 | E40: 4000 | F40: 6000 | G40: 15000 | H40: =IF(G40>0,G40/$G$15,"-") -> 0.1352765052
A41: Lime / hydrated lime | B41: kgs | C41: 256860 | D41: 200620 | E41: 167520 | F41: 200760 | G41: 825760 | H41: 7.447061794
A42: Fuel oil | B42: ltrs | C42: 30060 | D42: 21830 | E42: 35880 | F42: 31140 | G42: 118910 | H42: 1.072381949
A43: Gas | B43: cf | D43: 0 | E43: 0 | F43: 0 | G43: 0 | H43: -
A44: HCL | B44: ltrs | C44: 3142 | D44: 3551 | E44: 4258 | F44: 4717 | G44: 15668 | H44: 0.1413008189
A45: Caustic Soda | B45: ltrs | C45: 3143 | D45: 3119 | E45: 3840 | F45: 4252 | G45: 14354 | H45: 0.129450597
A46: O2 Reducer | B46: ltrs | C46: 115.5 | D46: 123 | E46: 69 | F46: 86.5 | G46: 394 | H46: 0.003553262869
A47: Phosphate | B47: ltrs | C47: 88.5 | D47: 38 | E47: 50.5 | F47: 52 | G47: 229 | H47: 0.002065221312
C48: 1
A49: Summary | B49: Line/Unit | C49: Q1 | D49: Q2 | E49: Q3 | F49: Q4 | G49: Year Total | J49: Hrs in year
A50: Availability of waste combustion by line, hrs | B50: 1 | C50: 2030 | D50: 2183 | E50: 1798 | F50: 1960 | G50: =SUM(C50:F50) -> 7971 | H50: =(G50)/J50 -> 0.9099315068 | J50: 8760
B51: 2 | C51: 2056.5 | D51: 2094 | E51: 1688 | F51: 2036.5 | G51: 7875 | H51: =(G51)/J50 -> 0.8989726027
A52: Overall Availability, mean avg. of all lines, hrs | C52: =AVERAGE(C50:C51) -> 2043.25 | D52: =AVERAGE(D50:D51) -> 2138.5 | E52: 1743 | F52: 1998.25 | G52: =AVERAGE(G50:G51) -> 7923 | H52: =(G52)/J50 -> 0.9044520548
A53: Hours of turbine operations, hrs | B53: 1 | C53: 2092 | D53: 2176 | E53: 1818.5 | F53: 1817.5 | G53: 7904 | H53: =(G53)/J50 -> 0.902283105
A54: Hours of heat / steam export | G54: 0 | H54: =IF(B54>0,#REF!/J50,"n/a") -> n/a
A55: Net Calorific Value of waste | B55: MJ/kg | C55: 24.67 | D55: 24.77 | E55: 26.09 | F55: 23.95 | H55: -
A56: Abnormal Events | B56: qty. | C56: 2 | D56: 1 | E56: 0 | F56: 0 | G56: 3 | H56: =IF(G56>0,"yes","no") -> yes
A57: Abnormal operation | B57: hours | C57: 6 | D57: 1 | E57: 0 | F57: 0 | G57: 7 | H57: =+(G57)/J50 -> 0.000799086758
A58: Permit Breaches | B58: qty. | C58: 5 | D58: 2 | E58: 1 | F58: 10 | G58: 18 | H58: =IF(G58>0,"yes","no") -> yes

Sheet Operational Summary
A1: =+'Cover Page'!$B$29 -> Annual Performance Report 2022 | E1: ='Operational Data'!E1 -> Wolverhampton EfW
A3: Summary of Plant Operations and Maintenance during the reporting year | K3: Notes:
A5: • In 2022 tube leaks have been the main reason of boiler unavailability in Wolverhampton followed by common parts issues. The overall boiler availability for the year was 90%. The turbine unavailability has been mainly impacted by boilers and by Western Power export disruption. The overall turbine availability for the year was 90%. • Extensive scheduled maintenance was undertaken at the plants annual planned shutdown period: o Boilers thorough inspections performed. Thin pipes and worn refractory renewed. o Soot blowers and air hammers inspected and maintained. o Combustion system thoroughly inspected and worn parts replaced. o Auxiliary burners inspected and serviced. o Hydraulic packs serviced. o Both boiler pressure relief valves, as well as common vessels and main valves inspected / serviced. o Bag house filters and scrubbers cleaned, inspected and repaired where needed. The program of bags replacement continued. o Ducting and expansion joints inspections and repairs made. o Fly ash and bottom ash conveyors inspected and serviced. o Lime, urea and activated carbon systems cleaned and inspected. o Main fans and pumps inspected and serviced. The main electrical motors have been tested. o Main instrumentation calibrated. o Turbine, generator and gearbox serviced. o Turbine blading borescope inspection carried out. o Generator electrical test performed. o Main electrical systems inspected and tested. | K5: Include summary of key operational and/or maintenance activity undertaken in the year, such as any major component upgrades and/or replacements
A29: Summary of Residue Handling for the reporting year
A31: There are two main sources of residue that arise from the operation of the plant; Incinerator Bottom ash (IBA) (which also includes ferrous metals discharged within the ash), and residues from the flue gas treatment system - known as Air Pollution Control residue (APCr). Residues from the flue gas treatment process (APCr) are discharged into an enclosed system which feed into double-skinned heavy-duty bags prior to removal from site for controlled treatment and disposal. These residues account for around 5% of the total weight of all refuse processed by the facility. The bottom ash produced by the site represents around 10% of the original volume of the refuse processed, and around 20% of its weight. Bottom ash residues are discharged from the lower end of each grate into a water filled ash discharger, where it is quenched and then ejected onto a conveyor system. Larger items are screened out and ferrous metals are removed via magnetic separation. The resulting material is stored in the storage bunkers prior to removal from site for recycling - the storage capacity for bottom ash residues and separated ferrous metals is sufficient to ensure 4 days storage. Collections for delivery to further processing or treatment sites are made on Mondays to Fridays and are scheduled to ensure sufficient storage capacity is maintained at all times. Collections are available at weekends if operational conditions require this facility. Bottom ash is now widely used in the UK and Europe as a substitute for valuable primary aggregate materials in the construction of roads and embankments. Bottom ash from North Midlands Operations Ltd is currently being reprocessed, with additional ferrous and trace metals being removed, and the remaining material being further processed into usable aggregate in a zero to landfill process. | K31: Include in here a summary of residue handling regimes and destinations

Sheet Perf. Form 1
A1: =+'Cover Page'!C39 -> 2022 | B1: Annual Reporting Performance Form 1
A3: =+'Cover Page'!B31 -> Permit EPR/HP3349QK | F3: Operator: | G3: =+'Cover Page'!B37:I37 -> 0
A4: Facility: | B4: =+'Cover Page'!B33:I33 -> Wolverhampton Energy from Waste Facility | F4: Form: | G4: Performance 1
A6: Reporting Period from: | D6: 2022-01-01 | F6: to: | G6: 2022-12-31
A8: =+A1 -> 2022 | B8: Annual Reporting of Waste Disposal and Recovery
A9: Waste Description | C9: Disposal Route(s) | E9: Disposal Tonnes | G9: Recovery Tonnes | I9: % / tonne of waste incinerated
A10: 1) Hazardous Wastes
A11: APC Residues | E11: ='Operational Data'!G31 -> 3064.36 | G11: 0 | I11: =IF((E11+G11)>0,(E11+G11)/'Operational Data'!$G$18, "-") -> 0.02787894282
A12: IBA | E12: 0 | G12: 0 | I12: =IF((E12+G12)>0,(E12+G12)/'Operational Data'!$G$18, "-") -> -
I13: =IF((E13+G13)>0,(E13+G13)/'Operational Data'!$G$18, "-") -> -
I14: =IF((E14+G14)>0,(E14+G14)/'Operational Data'!$G$18, "-") -> -
A15: Total Hazardous Waste | E15: =SUM(E11:F14) -> 3064.36 | G15: =SUM(G11:H14) -> 0 | I15: =IF((E15+G15)>0,(E15+G15)/'Operational Data'!$G$18, "-") -> 0.02787894282
A17: 2) Non-Hazardous Wastes
A18: IBA | E18: 0 | G18: ='Operational Data'!G32 -> 13976.36 | I18: =IF((E18+G18)>0,(E18+G18)/'Operational Data'!$G$18, "-") -> 0.1271541664
A19: Ferrous Metal | E19: 0 | G19: ='Operational Data'!G33 -> 1540.32 | I19: =IF((E19+G19)>0,(E19+G19)/'Operational Data'!$G$18, "-") -> 0.01401352752
A20: Process Water | E20: 0 | G20: 0 | I20: =IF((E20+G20)>0,(E20+G20)/'Operational Data'!$G$18, "-") -> -
I21: =IF((E21+G21)>0,(E21+G21)/'Operational Data'!$G$18, "-") -> -
I22: =IF((E22+G22)>0,(E22+G22)/'Operational Data'!$G$18, "-") -> -
A23: Total Non-Hazardous Waste | E23: =SUM(E18:F22) -> 0 | G23: =SUM(G18:H22) -> 15516.68 | I23: =IF((E23+G23)>0,(E23+G23)/'Operational Data'!$G$18, "-") -> 0.1411676939
A24: TOTAL WASTE | E24: =+E23+E15 -> 3064.36 | G24: =+G23+G15 -> 15516.68 | I24: =IF((E24+G24)>0,(E24+G24)/'Operational Data'!$G$18, "-") -> 0.1690466367
A26: Operator’s comments :
A31: =+A1 -> 2022 | B31: Annual Reporting of Water and Other Raw Material Usage
A32: Raw Material | E32: Usage | G32: Unit | H32: Specific Useage | J32: Unit
A33: Mains Water | E33: =+'Operational Data'!G36 -> 87667 | G33: m3 | H33: =IF(E33>0,E33/'Operational Data'!$G$18,"-") -> 0.7975770732 | J33: m3/te
A34: Total Water | E34: =+'Operational Data'!G37+'Operational Data'!G36 -> 87667 | G34: m3 | H34: =IF(E34>0,E34/'Operational Data'!$G$18,"-") -> 0.7975770732 | J34: m3/te
A35: Urea / Ammonia | E35: ='Operational Data'!G39 -> 214000 | G35: kg | H35: =IF(E35>0,E35/'Operational Data'!$G$18,"-") -> 1.946929787 | J35: kg/te
A36: Activated Carbon | E36: =+'Operational Data'!G40 -> 15000 | G36: kg | H36: =IF(E36>0,E36/'Operational Data'!$G$18,"-") -> 0.1364670412 | J36: kg/te
A37: Lime / hydrated lime / Sodium Bicarb. | E37: =+'Operational Data'!G41 -> 825760 | G37: kg | H37: =IF(E37>0,E37/'Operational Data'!$G$18,"-") -> 7.512601594 | J37: kg/te
A39: Operator’s comments :
A43: =+A31 -> 2022 | B43: Annual Reporting of other performance indicators
A44: Parameter | C44: Results by Line
C45: A1 | D45: A2 | I45: Turbine 1
A46: Operating hours for the year, hours | C46: ='Operational Data'!G50 -> 7971 | D46: ='Operational Data'!G51 -> 7875 | I46: ='Operational Data'!G53 -> 7904
A47: Number of periods of abnormal operation, qty. | C47: 2 | D47: 1
A48: Cumulative hours of abnormal operation for this year, hours | C48: 3.5 | D48: 3.5
A50: Operator’s comments :
A54: Signed: | G54: Date:

Sheet Energy Form 1
A1: =+'Cover Page'!C39 -> 2022 | B1: Annual Reporting of Energy Usage/Export
A3: =+'Cover Page'!B31 -> Permit EPR/HP3349QK | F3: Operator: | G3: =+'Cover Page'!B37:I37 -> 0
A5: Facility: | B5: =+'Cover Page'!B33:I33 -> Wolverhampton Energy from Waste Facility | F5: Form: | G5: Energy 1
A7: Reporting Period from: | D7: =+'Perf. Form 1'!D6:E6 -> 2022-01-01 | F7: to: | G7: =+'Perf. Form 1'!G6:H6 -> 2022-12-31
A9: Energy Source | D9: Energy Usage | F9: Unit | G9: Specific Useage (KWh/tonne incinerated
A10: Electricity Produced | D10: =+'Operational Data'!G21 -> 45669 | F10: MWh | G10: =+'Operational Data'!H21 -> 415.4875535
A11: Electricity Imported | D11: =+'Operational Data'!G24 -> 561.2 | F11: MWh | G11: =+'Operational Data'!H24 -> 5.1056869
A12: Electricity Exported | D12: =+'Operational Data'!G22 -> 37180.4 | F12: MWh | G12: =+'Operational Data'!H22 -> 338.2599451
A13: Gas Oil | F13: tonnes
A14: Steam/hot water exported | D14: =+'Operational Data'!G27 -> 0 | F14: GWh | G14: =+'Operational Data'!H27 -> -
A18: Operator’s comments :
A29: Signed: | G29: Date:
B35: North Midlands Operations Limited

Sheet Permit Compliance
A1: =+'Cover Page'!$B$29 -> Annual Performance Report 2022 | E1: =+'Cover Page'!$B$33 -> Wolverhampton Energy from Waste Facility
A3: Summary of Permit Compliance
A5: Compliance with permit limits for continuously monitored pollutants
A7: The plant met its emission limits as shown in the table below:
A8: Substance | C8: Percentage time compliant during operation | L8: Notes:
C9: Half-hourly limit | F9: Daily limit | L9: Report to 2 decimal places, i.e. xx.xx% Please provide a brief summary of each notification or non-compliance in the table (rather than just referring to notifications that were sent to the Regulator).
A10: Particulates | C10: 0.9999 | F10: 1
A11: Oxides of nitrogen | C11: 1 | F11: 1
A12: Sulphur dioxide | C12: 1 | F12: 1
A13: Carbon monoxide | C13: 0.9997 | F13: 0.9945
A14: Total organic carbon | C14: 0.9997 | F14: 0.9973
A15: Hydrogen chloride | C15: 0.9998 | F15: 0.9973
A16: Hydrogen fluoride | C16: 1 | F16: 1
A17: Average | C17: 0.9999 | F17: 0.9984
A19: Summary of any notifications or non-compliances under the permit
A20: Date | B20: Summary of notification or non-compliance [including Line/Reference] | E20: Reason | H20: Measures taken to prevent reoccurrence
A21: 2022-02-18 | B21: HCL 1/2hrly ELV breach (71 mg/m3) | E21: Poor quality waste | H21: Increased waste mixing
A22: 2022-03-03 | B22: HCL 1/2hrly ELV breach (147.21 mg/m3) | E22: Catastrophic failure of arch breaker in lime system rotary valve | H22: Repaired during September plant shut down
A23: 2022-03-03 | B23: HCL Daily ELV breach (35.78 mg/m3)
A24: 2022-03-03 | B24: HCL 1/2hrly ELV breach (74.76 mg/m3)
A25: 2022-03-03 | B25: HCL Daily ELV breach (23.46 mg/m3)
A26: 2022-04-21 | B26: HCL 1/2hrly ELV breach (61.89 mg/m3) | E26: Poor quality waste | H26: Increased waste mixing
A27: 2022-06-28 | B27: Particulate 1/2 hrly ELV breach (90.78 mg/m3) | E27: Failure in duty dust probe | H27: Analyser changed to standby
A28: 2022-07-20 | B28: CO 10 min ELV breach (8 x periods) | E28: Bang cleaning and soot blowing caused negative effect on combustion conditions | H28: Cleaning scheduled more appropriately
A29: 2022-09-26 | B29: HCL Daily ELV breach (10.73 mg/m3) | E29: Boiler start up causing excessive HCL production, lime dosing initially too low during start up | H29: Increase in lime dosing
A30: 2022-10-22 | B30: VOC 1/2 hrly ELV breach (21.33 mg/m3) | E30: Large waste build up on clicker resulting in waste not being efficiently moved and poor combustion | H30: Improved monitoring of grate thickness levels & adjustment of grate settings
A31: 2022-10-23 | B31: VOC daily ELV breach (10.21 mg/m3)
A32: 2022-10-23 | B32: CO daily ELV breach (84.87 mg/m3)
A33: 2022-10-27 | B33: CO daily ELV breach (50.01 mg/m3)
A34: 2022-10-31 | B34: VOC 1/2 hrly ELV breach (197.13 mg/m3)
A35: 2022-11-01 | B35: North Midlands Operations Limited | E35: Blocked feeder hopper caused loss of waste onto grate and incomplete combustion | H35: Adjustment of grate settings
A36: 2022-11-03 | B36: VOC 1/2 hrly ELV breach (38.11 mg/m3) | E36: Bang and reclean caused blockage in ash discharger | H36: Boiler shutdown
A37: 2022-11-05 | B37: CO 10 min ELV breach | E37: Poor quality waste | H37: Increase waste inspections
A38: 2022-12-10 | B38: VOC 1/2 hrly ELV breach (24.03 mg/m3) | E38: Mechanical failure of feed table hydraulics system | H38: Boiler shutdown
A40: Summary of any complaints received and actions to taken to resolve them.
A41: Date | B41: Summary of complaint [including Line/Reference] | E41: Reason * | H41: Measures taken to prevent reoccurrence
B42: None received in 2022
E47: * including whether substantiated by the operator or the EA

Sheet Improvements
A1: =+'Cover Page'!$B$29 -> Annual Performance Report 2022 | E1: =+'Cover Page'!$B$33 -> Wolverhampton Energy from Waste Facility
A3: Summary of Plant Improvements
A5: Summary of any efficiency improvements that have been completed within the year.
A6: • LED lamp replacement is an ongoing project. • The enhanced cleaning regime on the ACC is a consolidated practice (now 3 times/year). During the outage, the blades of the ACC fans are cleaned and the blade tip angles checked and adjusted. • The installation of a new condensate drainage system underneath the turbine has led to improved vacuum, thereby improving turbine efficiency. • FD fan 2 was fitted with a frequency converter during the 2022 outage.
A16: Summary of any permit improvement conditions that have been completed within the year and the resulting environmental benefits.
A17: All permit improvement conditions were completed prior to 2021. A draft Permit reflecting the new BREF requirements is currently being reviewed. Work towards the anticipated Improvement Conditions relating to BREF began in 2022, and will continue in 2023.
A27: Summary of any changes to the plant or operating techniques which required a variation to the permit and a summary of the resulting environmental impact.
A28: No permit variations were required during 2022.
A38: Summary of any other improvements made to the plant or planned to be made and a summary of the resulting environmental benefits.
A39: • 2 urea ports fitted in support of BREF compliance. • Replaced arch breaker and slide valve in lime silo to resolve HCl exceedance issues. • Continued replacement of existing lighting with LEDs. • FD fan 2 was fitted with a frequency converter during the 2022 outage. • Replaced several pumps throughout plant (trace heating, make-up, and switchgear for condensate) to prevent breakdowns. As the contract for the operation of the site moves to its end, dilapidation work is currently in progress across the site. If the O&M contract is extended, improvement work shall be planned and carried out.

Sheet Public Liasion
A1: =+'Cover Page'!$B$29 -> Annual Performance Report 2022 | E1: =+'Cover Page'!$B$33 -> Wolverhampton Energy from Waste Facility
A3: Details of Public & Stakeholder Liasion
A5: Summary of events held during the reporting year.
A6: Date | C6: Description
A7: Jan 22 - Oct 22 | C7: MESE conducted monthly meetings with its core stakeholders in order discuss operational, health and safety, and environmental performance.
A9: Nov 22- Dec 22 | C9: NMOL conducted monthly meetings with its core stakeholders in order discuss operational, health and safety, and environmental performance.
A16: List of events planned for next year
A17: Date | C17: Description
A18: 2023 | C18: NMOL will continue to meet with its core stakeholders on a monthly basis.
A20: 2023 | C20: NMOL to launch company website.
A29: If you wish to be involved in the public liasion programme, please contact _________________
B35: North Midlands Operations Limited

Sheet Residue Quality
A1: =+'Cover Page'!$B$29 -> Annual Performance Report 2022 | E1: =+'Cover Page'!$B$33 -> Wolverhampton Energy from Waste Facility
A3: Residue Quality Monitoring Requirements
A5: Summary of monitoring undertaken and compliance
A6: Monitoring has been undertaken in line with the permit, quarterly for APC and monthly for IBA.
A13: Commentary on any specific events
A14: Date & Event | C14: Description
A27: Residue Quality Monitoring Results
A28: Parameter (unit) | C28: Limit | D28: Normal Operation
D29: Bottom ash | F29: APC Residues
A30: Loss on Ignition (average %) | C30: <5% | D30: 5.365
A31: Total Organic Carbon (average %) | C31: <3% | D31: 0.615
A32: No. of Assessments Undertaken | C32: --- | D32: 2 | F32: 4
A33: No. of Hazardous Results | C33: --- | D33: 0
A35: Comments :
A36: Results for December, though undertaken were not available at the time of reporting

Sheet Water
A1: =+'Cover Page'!$B$29 -> Annual Performance Report 2022 | E1: =+'Cover Page'!$B$33 -> Wolverhampton Energy from Waste Facility
A3: Emissions to Water
A5: Summary of monitoring undertaken and compliance
A6: No monitoring required by the permit, however monitoring on emisions to sewer is undertaken annually
A8: Results provided in mg/l
A13: Commentary on any specific events
A14: Date & Event | C14: Description
A22: Emissions to Water / Sewer
A23: Parameter | D23: Monitoring Frequency | G23: Limit | H23: Target | I23: Max. | J23: Average
A24: pH | D24: Annual | G24: N/A | H24: N/A | I24: 7.8
A25: SS | D25: Annual | G25: N/A | H25: N/A | I25: 4
A26: Cd | D26: Annual | G26: N/A | H26: N/A | I26: 0.00022
A27: Cr | D27: Annual | G27: N/A | H27: N/A | I27: 0.00059
A28: Cu | D28: Annual | G28: N/A | H28: N/A | I28: 0.0048
A29: Pb | D29: Annual | G29: N/A | H29: N/A | I29: 0.0008
A30: Ni | D30: Annual | G30: N/A | H30: N/A | I30: 0.0042
A31: Zn | D31: Annual | G31: N/A | H31: N/A | I31: 0.021
A32: P | D32: Annual | G32: N/A | H32: N/A | I32: 0.46
A33: COD | D33: Annual | G33: N/A | H33: N/A | I33: <11
B35: North Midlands Operations Limited

Sheet Air (periodic)
A1: =+'Cover Page'!$B$29 -> Annual Performance Report 2022 | E1: =+'Cover Page'!$B$33 -> Wolverhampton Energy from Waste Facility
A3: Emissions to Air (periodically monitored)
A5: Summary of monitoring undertaken, standards used and compliance | M5: Notes:
M6: Template may require adjustment for any bespoke monitoring requirements of permit.
A9: Results of emissions to air that are periodically monitored
A10: Substance | C10: Ref. Period | D10: Emission Limit Value | F10: Average | M10: User to add additional tables as necessary, depending on whether quarterly or bi-annual reporting is required for the compliance year
F11: A1 | G11: A2
A12: Hydrogen fluoride | C12: 1 hr | D12: 2 mg/m3 | F12: 0.135 | G12: 0.0697
A13: Cd and Th and their compounds | C13: 6-8hrs | D13: 0.05 mg/m3 | F13: 0.006 | G13: 0.021
A14: Hg and its compounds | C14: 6-8hrs | D14: 0.05 mg/m3 | F14: 0.001 | G14: 0.002
A15: Sb, As, Pb, Cr, Co, Cu, Mn, Ni, V and their compounds | C15: 6-8hrs | D15: 0.5 mg/m3 | F15: 0.037 | G15: 0.042
A16: Dioxins & Furans (I-TEQ) | C16: 6-8hrs | D16: 0.1 ng/m3 | F16: 0.027 | G16: 0.04
A17: PCBs (WHO-TEQ Humans / Mammals) | C17: 6-8hrs | D17: None set ng/m3 | F17: 0.002 | G17: 0.002
A18: PCBs (WHO-TEQ Fish) | C18: 6-8hrs | D18: None set ng/m3 | F18: 0.0001 | G18: 0.0001
A19: PCBs (WHO-TEQ Birds) | C19: 6-8hrs | D19: None set ng/m3 | F19: 0.004 | G19: 0.005
A20: Dioxins & Furans (WHO-TEQ Humans / Mammals) | C20: 6-8hrs | D20: None set ng/m3 | F20: 0.026 | G20: 0.037
A21: Dioxins & Furans (WHO-TEQ Fish) | C21: 6-8hrs | D21: None set ng/m3 | F21: 0.028 | G21: 0.043
A22: Dioxins & Furans (WHO-TEQ Birds) | C22: 6-8hrs | D22: None set ng/m3 | F22: 0.046 | G22: 0.078
A23: Anthanthrene | C23: 6-8hrs | D23: None set µg/m3 | F23: <0.007 | G23: <0.007
A24: Benzo(a)anthracene | C24: 6-8hrs | D24: None set µg/m3 | F24: <0.007 | G24: <0.007
A25: Benzo(a)pyrene | C25: 6-8hrs | D25: None set µg/m3 | F25: 0.01 | G25: <0.007
A26: Benzo(b)fluoranthene | C26: 6-8hrs | D26: None set µg/m3 | F26: 0.01 | G26: <0.007
A27: Benzo(b)naptho(2,1-d) thiophene | C27: 6-8hrs | D27: None set µg/m3 | F27: <0.007 | G27: <0.007
A28: Benzo(c)phenanthrene | C28: 6-8hrs | D28: None set µg/m3 | F28: <0.007 | G28: <0.007
A29: Benzo(ghi)perylene | C29: 6-8hrs | D29: None set µg/m3 | F29: 0.03 | G29: <0.007
A30: Benzo(k)fluoranthene | C30: 6-8hrs | D30: None set µg/m3 | F30: <0.007 | G30: <0.007
A31: Cholanthrene | C31: 6-8hrs | D31: None set µg/m3 | F31: <0.007 | G31: <0.007
A32: Chrysene | C32: 6-8hrs | D32: None set µg/m3 | F32: 0.01 | G32: <0.007
A33: Cyclopenta(cd)pyrene | C33: 6-8hrs | D33: None set µg/m3 | F33: 0.04 | G33: <0.007
A34: Dibenzo(ai)pyrene | C34: 6-8hrs | D34: None set µg/m3 | F34: <0.007 | G34: <0.007
A35: Dibenzo(ah)anthracene | C35: 6-8hrs | D35: None set µg/m3 | F35: <0.007 | G35: <0.007
A36: Fluoranthene | C36: 6-8hrs | D36: None set µg/m3 | F36: 0.21 | G36: 0.06
A37: Indeno(123-cd) pyrene | C37: 6-8hrs | D37: None set µg/m3 | F37: 0.01 | G37: <0.007
A38: Naphthalene | C38: 6-8hrs | D38: None set µg/m3 | F38: 0.905 | G38: 1.51
A39: Comments :

Sheet Air (CEMS)
A1: =+'Cover Page'!$B$29 -> Annual Performance Report 2022 | I1: =+'Cover Page'!$B$33 -> Wolverhampton Energy from Waste Facility
A3: Emissions to Air (continously monitored)
P4: Notes:
A5: Summary of monitoring undertaken, standards used and compliance | P5: Template may require adjustment for any bespoke monitoring requirements of permit
P6: Report to 2 decimal places, i.e. xx.xx%
A11: Results of emissions to air that are continuously monitored (maximum and average values for each line)
A12: Substance | B12: Reference Period | C12: Emission Limit Value | D12: A1 | F12: A2
D13: Max. | E13: Avg. | F13: Max. | G13: Avg.
A14: Oxides of nitrogen | B14: Daily mean | C14: 200 mg/m3 | D14: =NOx!O19 -> 190 | E14: =NOx!N19 -> 184.4778246 | F14: =NOx!O34 -> 198 | G14: =NOx!N34 -> 179.5785385
B15: ½ hourly mean | C15: 400 mg/m3 | D15: =NOx!M19 -> 379 | E15: =NOx!L19 -> 183.4166667 | F15: =NOx!M34 -> 324 | G15: =NOx!L34 -> 179.5
A16: Particulates | B16: Daily mean | C16: 10 mg/m3 | D16: =Particulates!O19 -> 4 | E16: =Particulates!N19 -> 0.6948483814 | F16: =Particulates!O34 -> 8 | G16: =Particulates!N34 -> 1.273876848
B17: ½ hourly mean | C17: 30 mg/m3 | D17: =Particulates!M19 -> 91 | E17: =Particulates!L19 -> 0.75 | F17: =Particulates!M34 -> 17 | G17: =Particulates!L34 -> 1.416666667
A18: Total Organic Carbon | B18: Daily mean | C18: 10 mg/m3 | D18: =TOC!O19 -> 2 | E18: =TOC!N19 -> 0.07266837603 | F18: =TOC!O34 -> 4 | G18: =TOC!N34 -> 0.1762394147
B19: ½ hourly mean | C19: 20 mg/m3 | D19: =TOC!M19 -> 19 | E19: =TOC!L19 -> 0 | F19: =TOC!M34 -> 384 | G19: =TOC!L34 -> 0.08333333333
A20: Hydrogen chloride | B20: Daily mean | C20: 10 mg/m3 | D20: =HCl!O19 -> 9 | E20: =HCl!N19 -> 6.214655322 | F20: =HCl!O34 -> 8 | G20: =HCl!N34 -> 5.76856488
B21: ½ hourly mean | C21: 60 mg/m3 | D21: =HCl!M19 -> 147 | E21: =HCl!L19 -> 6.333333333 | F21: =HCl!M34 -> 75 | G21: =HCl!L34 -> 5.75
A22: Sulphur dioxide | B22: Daily mean | C22: 50 mg/m3 | D22: ='SO2'!O19 -> 28 | E22: ='SO2'!N19 -> 15.01523252 | F22: ='SO2'!O34 -> 31 | G22: ='SO2'!N34 -> 18.03774753
B23: ½ hourly mean | C23: 200 mg/m3 | D23: ='SO2'!M19 -> 153 | E23: ='SO2'!L19 -> 15.16666667 | F23: ='SO2'!M34 -> 130 | G23: ='SO2'!L34 -> 18.08333333
A24: Carbon monoxide | B24: Daily mean | C24: 50 mg/m3 | D24: ='CO 95% 10 min'!Q19 -> 45 | E24: ='CO 95% 10 min'!P19 -> 8.92189877 | F24: ='CO 95% 10 min'!Q34 -> 50 | G24: ='CO 95% 10 min'!P34 -> 7.264766584
B25: 95%ile 10-min avg * | C25: 150 mg/m3 * | D25: ='CO 95% 10 min'!M19 -> 82.5 | E25: ='CO 95% 10 min'!N19 -> 9.083333333 | F25: ='CO 95% 10 min'!M34 -> 59.83333333 | G25: ='CO 95% 10 min'!N34 -> 7.666666667
A26: Ammonia | B26: Daily mean | C26: No limit set | D26: ='NH3'!O19 -> 8 | E26: ='NH3'!N19 -> 3.485623387 | F26: ='NH3'!O34 -> 11 | G26: ='NH3'!N34 -> 1.075504505
A27: * = delete or amend as appropriate
A28: Comments :
B35: North Midlands Operations Limited

Sheet HCl
A1: =+'Cover Page'!$B$29 -> Annual Performance Report 2022 | E1: =+'Cover Page'!$B$33 -> Wolverhampton Energy from Waste Facility
A3: Monitoring of Hydrogen Chloride emissions | D3: Whole Installation | G3: See Notes in Cell Q3 | J3: =+A3 -> Monitoring of Hydrogen Chloride emissions | N3: Per Combustion Line | Q3: Notes:
Q4: User to add logic to complete Whole installation, Table A5:G18. From the data in Per Combustion Line, Table J6:O79, subject to No. of lines installed
A5: mg/Nm3 | B5: 1/2 Hourly Reference Periods | E5: Daily Reference Periods
A6: =+'Cover Page'!C39 -> 2022 | B6: 1/2 hourly HCl ELV | C6: Monthly 1/2 hourly mean | D6: Highest 1/2 hourly maximum | E6: Daily HCl ELV | F6: Monthly daily mean | G6: Highest daily maximum | J6: =+A6 -> 2022 | K6: mg/Nm3 | L6: Monthly 1/2 hourly mean | M6: Monthly 1/2 hourly maximum | N6: Monthly daily mean | O6: Monthly daily maximum
A7: Jan | B7: 60 | C7: =AVERAGE(L7,L22) -> 6.5 | D7: =MAX(M7,M22) -> 41 | E7: 10 | F7: =AVERAGE(N7,N22) -> 6.650537634 | G7: =MAX(O7,O22) -> 8 | J7: A1 | K7: Jan | L7: 6 | M7: 19 | N7: 6.333333333 | O7: 7
A8: Feb | B8: 60 | C8: =AVERAGE(L8,L23) -> 6 | D8: =MAX(M8,M23) -> 71 | E8: 10 | F8: =AVERAGE(N8,N23) -> 5.857142857 | G8: =MAX(O8,O23) -> 8 | K8: Feb | L8: 6 | M8: 71 | N8: 5.5 | O8: 7
A9: Mar | B9: 60 | C9: 6 | D9: 147 | E9: 10 | F9: 5.133928571 | G9: 8 | K9: Mar | L9: 6 | M9: 147 | N9: 4.642857143 | O9: 7 | Q9: Whole Installation table A5:G18:
A10: Apr | B10: 60 | C10: 5 | D10: 62 | E10: 10 | F10: 5.216666667 | G10: 6 | K10: Apr | L10: 5 | M10: 62 | N10: 5.4 | O10: 6 | Q10: Mean: for 1/2 hourly and daily periods calculate mean of values across all operational combustion lines for the month
A11: May | B11: 60 | C11: 5.5 | D11: 44 | E11: 10 | F11: 5.657568238 | G11: 7 | K11: May | L11: 6 | M11: 44 | N11: 6.161290323 | O11: 7
A12: Jun | B12: 60 | C12: 6.5 | D12: 48 | E12: 10 | F12: 6.533333333 | G12: 8 | K12: Jun | L12: 7 | M12: 35 | N12: 7.066666667 | O12: 8
A13: Jul | B13: 60 | C13: 6.5 | D13: 27 | E13: 10 | F13: 6.370430108 | G13: 8 | K13: Jul | L13: 7 | M13: 27 | N13: 6.774193548 | O13: 8 | Q13: Maximum: for 1/2 hourly and daily periods use the highest value across all operational combustion lines for the month
A14: Aug | B14: 60 | C14: 6 | D14: 35 | E14: 10 | F14: 5.95 | G14: 8 | K14: Aug | L14: 7 | M14: 35 | N14: 6.9 | O14: 8
A15: Sep | B15: 60 | C15: 5.5 | D15: 36 | E15: 10 | F15: 5.516666667 | G15: 8 | K15: Sep | L15: 6 | M15: 36 | N15: 5.7 | O15: 8
A16: Oct | B16: 60 | C16: 6.5 | D16: 35 | E16: 10 | F16: 6.50974026 | G16: 9 | K16: Oct | L16: 7 | M16: 20 | N16: 7.090909091 | O16: 9
A17: Nov | B17: 60 | C17: 6 | D17: 28 | E17: 10 | F17: 6.092592593 | G17: 7 | K17: Nov | L17: 6 | M17: 23 | N17: 6.185185185 | O17: 7
A18: Dec | B18: 60 | C18: 6.5 | D18: 38 | E18: 10 | F18: 6.410714286 | G18: 7 | K18: Dec | L18: 7 | M18: 26 | N18: 6.821428571 | O18: 7
K19: Annual | L19: =AVERAGE(L7:L18) -> 6.333333333 | M19: =MAX(M7:M18) -> 147 | N19: =AVERAGE(N7:N18) -> 6.214655322 | O19: =MAX(O7:O18) -> 9
J21: =+A6 -> 2022 | K21: mg/Nm3 | L21: Monthly 1/2 hourly mean | M21: Monthly 1/2 hourly maximum | N21: Monthly daily mean | O21: Monthly daily maximum
J22: A2 | K22: Jan | L22: 7 | M22: 41 | N22: 6.967741935 | O22: 8
K23: Feb | L23: 6 | M23: 19 | N23: 6.214285714 | O23: 8
K24: Mar | L24: 6 | M24: 75 | N24: 5.625 | O24: 8
K25: Apr | L25: 5 | M25: 31 | N25: 5.033333333 | O25: 6
K26: May | L26: 5 | M26: 22 | N26: 5.153846154 | O26: 7
K27: Jun | L27: 6 | M27: 48 | N27: 6 | O27: 8
K28: Jul | L28: 6 | M28: 18 | N28: 5.966666667 | O28: 7
K29: Aug | L29: 5 | M29: 21 | N29: 5 | O29: 7
K30: Sep | L30: 5 | M30: 21 | N30: 5.333333333 | O30: 7
K31: Oct | L31: 6 | M31: 35 | N31: 5.928571429 | O31: 8
K32: Nov | L32: 6 | M32: 28 | N32: 6 | O32: 7
K33: Dec | L33: 6 | M33: 38 | N33: 6 | O33: 7
K34: Annual | L34: =AVERAGE(L22:L33) -> 5.75 | M34: =MAX(M22:M33) -> 75 | N34: =AVERAGE(N22:N33) -> 5.76856488 | O34: =MAX(O22:O33) -> 8
B35: North Midlands Operations Limited
C43: 01179 372 811
C45: emily.hingston@sol-environment.co.uk
A48: Comments :

Sheet SO2
A1: =+'Cover Page'!$B$29 -> Annual Performance Report 2022 | E1: =+'Cover Page'!$B$33 -> Wolverhampton Energy from Waste Facility
A3: Monitoring of Sulphur dioxide emissions | D3: Whole Installation | G3: See Notes in Cell Q3 | J3: =+A3 -> Monitoring of Sulphur dioxide emissions | N3: Per Combustion Line | Q3: Notes:
Q4: User to add logic to complete Whole installation, Table A5:G18. From the data in Per Combustion Line, Table J6:O79, subject to No. of lines installed
A5: mg/Nm3 | B5: 1/2 Hourly Reference Periods | E5: Daily Reference Periods
A6: =+'Cover Page'!C39 -> 2022 | B6: 1/2 hourly SO2 ELV | C6: Monthly 1/2 hourly mean | D6: Highest 1/2 hourly maximum | E6: Daily SO2 ELV | F6: Monthly daily mean | G6: Highest daily maximum | J6: =+A6 -> 2022 | K6: mg/Nm3 | L6: Monthly 1/2 hourly mean | M6: Monthly 1/2 hourly maximum | N6: Monthly daily mean | O6: Monthly daily maximum
A7: Jan | B7: 200 | C7: =AVERAGE(L7,L22) -> 15.5 | D7: =MAX(M7,M22) -> 68 | E7: 50 | F7: =AVERAGE(N7,N22) -> 15.34946237 | G7: =MAX(O7,O22) -> 26 | J7: A1 | K7: Jan | L7: 15 | M7: 68 | N7: 14.66666667 | O7: 26
A8: Feb | B8: 200 | C8: =AVERAGE(L8,L23) -> 16.5 | D8: =MAX(M8,M23) -> 76 | E8: 50 | F8: =AVERAGE(N8,N23) -> 16.69642857 | G8: =MAX(O8,O23) -> 23 | K8: Feb | L8: 15 | M8: 76 | N8: 15.35714286 | O8: 23
A9: Mar | B9: 200 | C9: 18.5 | D9: 101 | E9: 50 | F9: 17.99404762 | G9: 28 | K9: Mar | L9: 15 | M9: 98 | N9: 14.32142857 | O9: 28 | Q9: Whole Installation table A5:G18:
A10: Apr | B10: 200 | C10: 19.5 | D10: 130 | E10: 50 | F10: 19.56666667 | G10: 27 | K10: Apr | L10: 18 | M10: 102 | N10: 18.06666667 | O10: 26 | Q10: Mean: for 1/2 hourly and daily periods calculate mean of values across all operational combustion lines for the month
A11: May | B11: 200 | C11: 17.5 | D11: 132 | E11: 50 | F11: 17.59863524 | G11: 30 | K11: May | L11: 16 | M11: 132 | N11: 15.77419355 | O11: 21
A12: Jun | B12: 200 | C12: 17 | D12: 94 | E12: 50 | F12: 16.71666667 | G12: 29 | K12: Jun | L12: 13 | M12: 65 | N12: 12.76666667 | O12: 19
A13: Jul | B13: 200 | C13: 13 | D13: 153 | E13: 50 | F13: 13.13064516 | G13: 25 | K13: Jul | L13: 9 | M13: 153 | N13: 9.161290323 | O13: 16 | Q13: Maximum: for 1/2 hourly and daily periods use the highest value across all operational combustion lines for the month
A14: Aug | B14: 200 | C14: 13.5 | D14: 97 | E14: 50 | F14: 13.45641026 | G14: 27 | K14: Aug | L14: 11 | M14: 76 | N14: 10.56666667 | O14: 20
A15: Sep | B15: 200 | C15: 14.5 | D15: 96 | E15: 50 | F15: 15.05833333 | G15: 26 | K15: Sep | L15: 16 | M15: 82 | N15: 16.2 | O15: 26
A16: Oct | B16: 200 | C16: 17.5 | D16: 102 | E16: 50 | F16: 16.50487013 | G16: 27 | K16: Oct | L16: 18 | M16: 102 | N16: 17.54545455 | O16: 25
A17: Nov | B17: 200 | C17: 17 | D17: 110 | E17: 50 | F17: 17 | G17: 24 | K17: Nov | L17: 17 | M17: 80 | N17: 17.18518519 | O17: 23
A18: Dec | B18: 200 | C18: 19.5 | D18: 98 | E18: 50 | F18: 19.24571429 | G18: 31 | K18: Dec | L18: 19 | M18: 84 | N18: 18.57142857 | O18: 25
K19: Annual | L19: =AVERAGE(L7:L18) -> 15.16666667 | M19: =MAX(M7:M18) -> 153 | N19: =AVERAGE(N7:N18) -> 15.01523252 | O19: =MAX(O7:O18) -> 28
J21: =+A6 -> 2022 | K21: mg/Nm3 | L21: Monthly 1/2 hourly mean | M21: Monthly 1/2 hourly maximum | N21: Monthly daily mean | O21: Monthly daily maximum
J22: A2 | K22: Jan | L22: 16 | M22: 64 | N22: 16.03225806 | O22: 26
K23: Feb | L23: 18 | M23: 74 | N23: 18.03571429 | O23: 23
K24: Mar | L24: 22 | M24: 101 | N24: 21.66666667 | O24: 27
K25: Apr | L25: 21 | M25: 130 | N25: 21.06666667 | O25: 27
K26: May | L26: 19 | M26: 129 | N26: 19.42307692 | O26: 30
K27: Jun | L27: 21 | M27: 94 | N27: 20.66666667 | O27: 29
K28: Jul | L28: 17 | M28: 106 | N28: 17.1 | O28: 25
K29: Aug | L29: 16 | M29: 97 | N29: 16.34615385 | O29: 27
K30: Sep | L30: 13 | M30: 96 | N30: 13.91666667 | O30: 23
K31: Oct | L31: 17 | M31: 77 | N31: 15.46428571 | O31: 27
K32: Nov | L32: 17 | M32: 110 | N32: 16.81481481 | O32: 24
K33: Dec | L33: 20 | M33: 98 | N33: 19.92 | O33: 31
K34: Annual | L34: =AVERAGE(L22:L33) -> 18.08333333 | M34: =MAX(M22:M33) -> 130 | N34: =AVERAGE(N22:N33) -> 18.03774753 | O34: =MAX(O22:O33) -> 31
B35: North Midlands Operations Limited
C43: 01179 372 811
C45: emily.hingston@sol-environment.co.uk
A48: Comments :

Sheet NOx
A1: =+'Cover Page'!$B$29 -> Annual Performance Report 2022 | E1: =+'Cover Page'!$B$33 -> Wolverhampton Energy from Waste Facility
A3: Monitoring of Oxides of Nitrogen emissions | D3: Whole Installation | G3: See Notes in Cell Q3 | J3: =+A3 -> Monitoring of Oxides of Nitrogen emissions | N3: Per Combustion Line | Q3: Notes:
Q4: User to add logic to complete Whole installation, Table A5:G18. From the data in Per Combustion Line, Table J6:O79, subject to No. of lines installed
A5: mg/Nm3 | B5: 1/2 Hourly Reference Periods | E5: Daily Reference Periods
A6: =+'Cover Page'!C39 -> 2022 | B6: 1/2 hourly NOx ELV | C6: Monthly 1/2 hourly mean | D6: Highest 1/2 hourly maximum | E6: Daily NOx ELV | F6: Monthly daily mean | G6: Highest daily maximum | J6: =+A6 -> 2022 | K6: mg/Nm3 | L6: Monthly 1/2 hourly mean | M6: Monthly 1/2 hourly maximum | N6: Monthly daily mean | O6: Monthly daily maximum
A7: Jan | B7: 400 | C7: =AVERAGE(L7,L22) -> 184 | D7: =MAX(M7,M22) -> 262 | E7: 200 | F7: =AVERAGE(N7,N22) -> 184.3751493 | G7: =MAX(O22,O7) -> 191 | J7: A1 | K7: Jan | L7: 183 | M7: 234 | N7: 183.8148148 | O7: 187
A8: Feb | B8: 400 | C8: =AVERAGE(L8,L23) -> 184 | D8: =MAX(M8,M23) -> 292 | E8: 200 | F8: =AVERAGE(N8,N23) -> 184.2678571 | G8: =MAX(O23,O8) -> 189 | K8: Feb | L8: 183 | M8: 258 | N8: 183.25 | O8: 188
A9: Mar | B9: 400 | C9: 185 | D9: 336 | E9: 200 | F9: 185.0982143 | G9: 188 | K9: Mar | L9: 186 | M9: 336 | N9: 185.5714286 | O9: 188 | Q9: Whole Installation table A5:G18:
A10: Apr | B10: 400 | C10: 185 | D10: 324 | E10: 200 | F10: 184.95 | G10: 190 | K10: Apr | L10: 185 | M10: 273 | N10: 185.2666667 | O10: 187 | Q10: Mean: for 1/2 hourly and daily periods calculate mean of values across all operational combustion lines for the month
A11: May | B11: 400 | C11: 184 | D11: 379 | E11: 200 | F11: 183.6215881 | G11: 190 | K11: May | L11: 183 | M11: 379 | N11: 182.9354839 | O11: 190
A12: Jun | B12: 400 | C12: 185 | D12: 255 | E12: 200 | F12: 185.1666667 | G12: 187 | K12: Jun | L12: 185 | M12: 254 | N12: 184.9666667 | O12: 187
A13: Jul | B13: 400 | C13: 184.5 | D13: 291 | E13: 200 | F13: 184.5075269 | G13: 189 | K13: Jul | L13: 184 | M13: 291 | N13: 183.5483871 | O13: 189 | Q13: Maximum: for 1/2 hourly and daily periods use the highest value across all operational combustion lines for the month
A14: Aug | B14: 400 | C14: 185 | D14: 250 | E14: 200 | F14: 185.0333333 | G14: 190 | K14: Aug | L14: 185 | M14: 245 | N14: 185.5666667 | O14: 190
A15: Sep | B15: 400 | C15: 173 | D15: 247 | E15: 200 | F15: 177.4083333 | G15: 187 | K15: Sep | L15: 176 | M15: 247 | N15: 185.4 | O15: 187
A16: Oct | B16: 400 | C16: 172 | D16: 317 | E16: 200 | F16: 171.7029221 | G16: 188 | K16: Oct | L16: 186 | M16: 314 | N16: 185.2272727 | O16: 188
A17: Nov | B17: 400 | C17: 175.5 | D17: 305 | E17: 200 | F17: 177.4444444 | G17: 198 | K17: Nov | L17: 180 | M17: 260 | N17: 183.2222222 | O17: 187
A18: Dec | B18: 400 | C18: 180.5 | D18: 315 | E18: 200 | F18: 180.7621429 | G18: 190 | K18: Dec | L18: 185 | M18: 315 | N18: 184.9642857 | O18: 187
K19: Annual | L19: =AVERAGE(L7:L18) -> 183.4166667 | M19: =MAX(M7:M18) -> 379 | N19: =AVERAGE(N7:N18) -> 184.4778246 | O19: =MAX(O7:O18) -> 190
J21: =+A6 -> 2022 | K21: mg/Nm3 | L21: Monthly 1/2 hourly mean | M21: Monthly 1/2 hourly maximum | N21: Monthly daily mean | O21: Monthly daily maximum
J22: A2 | K22: Jan | L22: 185 | M22: 262 | N22: 184.9354839 | O22: 191
K23: Feb | L23: 185 | M23: 292 | N23: 185.2857143 | O23: 189
K24: Mar | L24: 184 | M24: 285 | N24: 184.625 | O24: 187
K25: Apr | L25: 185 | M25: 324 | N25: 184.6333333 | O25: 190
K26: May | L26: 185 | M26: 248 | N26: 184.3076923 | O26: 189
K27: Jun | L27: 185 | M27: 255 | N27: 185.3666667 | O27: 187
K28: Jul | L28: 185 | M28: 262 | N28: 185.4666667 | O28: 189
K29: Aug | L29: 185 | M29: 250 | N29: 184.5 | O29: 187
K30: Sep | L30: 170 | M30: 231 | N30: 169.4166667 | O30: 185
K31: Oct | L31: 158 | M31: 317 | N31: 158.1785714 | O31: 187
K32: Nov | L32: 171 | M32: 305 | N32: 171.6666667 | O32: 198
K33: Dec | L33: 176 | M33: 269 | N33: 176.56 | O33: 190
K34: Annual | L34: =AVERAGE(L22:L33) -> 179.5 | M34: =MAX(M22:M33) -> 324 | N34: =AVERAGE(N22:N33) -> 179.5785385 | O34: =MAX(O22:O33) -> 198
B35: North Midlands Operations Limited
C43: 01179 372 811
C45: emily.hingston@sol-environment.co.uk
A48: Comments :

Sheet TOC
A1: =+'Cover Page'!$B$29 -> Annual Performance Report 2022 | E1: =+'Cover Page'!$B$33 -> Wolverhampton Energy from Waste Facility
A3: Monitoring of Total organic carbon emissions | D3: Whole Installation | G3: See Notes in Cell Q3 | J3: =+A3 -> Monitoring of Total organic carbon emissions | N3: Per Combustion Line | Q3: Notes:
Q4: User to add logic to complete Whole installation, Table A5:G18. From the data in Per Combustion Line, Table J6:O79, subject to No. of lines installed
A5: mg/Nm3 | B5: 1/2 Hourly Reference Periods | E5: Daily Reference Periods
A6: =+'Cover Page'!C39 -> 2022 | B6: 1/2 hourly TOC ELV | C6: Monthly 1/2 hourly mean | D6: Highest 1/2 hourly maximum | E6: Daily TOC ELV | F6: Monthly daily mean | G6: Highest daily maximum | J6: =+A6 -> 2022 | K6: mg/Nm3 | L6: Monthly 1/2 hourly mean | M6: Monthly 1/2 hourly maximum | N6: Monthly daily mean | O6: Monthly daily maximum
A7: Jan | B7: 20 | C7: =AVERAGE(L7,L22) -> 0 | D7: =MAX(M7,M22) -> 11 | E7: 10 | F7: =AVERAGE(N7,N22) -> 0.2813620072 | G7: =MAX(O7,O22) -> 1 | J7: A1 | K7: Jan | L7: 0 | M7: 11 | N7: 0.1111111111 | O7: 1
A8: Feb | B8: 20 | C8: =AVERAGE(L8,L23) -> 0 | D8: =MAX(M8,M23) -> 7 | E8: 10 | F8: =AVERAGE(N8,N23) -> 0.1428571429 | G8: =MAX(O8,O23) -> 2 | K8: Feb | L8: 0 | M8: 3 | N8: 0.25 | O8: 2
A9: Mar | B9: 20 | C9: 0 | D9: 6 | E9: 10 | F9: 0 | G9: 0 | K9: Mar | L9: 0 | M9: 2 | N9: 0 | O9: 0 | Q9: Whole Installation table A5:G18:
A10: Apr | B10: 20 | C10: 0 | D10: 4 | E10: 10 | F10: 0.06666666667 | G10: 2 | K10: Apr | L10: 0 | M10: 1 | N10: 0 | O10: 0 | Q10: Mean: for 1/2 hourly and daily periods calculate mean of values across all operational combustion lines for the month
A11: May | B11: 20 | C11: 0 | D11: 18 | E11: 10 | F11: 0 | G11: 0 | K11: May | L11: 0 | M11: 0 | N11: 0 | O11: 0
A12: Jun | B12: 20 | C12: 0 | D12: 4 | E12: 10 | F12: 0 | G12: 0 | K12: Jun | L12: 0 | M12: 1 | N12: 0 | O12: 0
A13: Jul | B13: 20 | C13: 0 | D13: 15 | E13: 10 | F13: 0.1784946237 | G13: 1 | K13: Jul | L13: 0 | M13: 6 | N13: 0.2903225806 | O13: 1 | Q13: Maximum: for 1/2 hourly and daily periods use the highest value across all operational combustion lines for the month
A14: Aug | B14: 20 | C14: 0 | D14: 15 | E14: 10 | F14: 0.1294871795 | G14: 1 | K14: Aug | L14: 0 | M14: 15 | N14: 0.06666666667 | O14: 1
A15: Sep | B15: 20 | C15: 0 | D15: 12 | E15: 10 | F15: 0.04166666667 | G15: 1 | K15: Sep | L15: 0 | M15: 4 | N15: 0 | O15: 0
A16: Oct | B16: 20 | C16: 0 | D16: 384 | E16: 10 | F16: 0.112012987 | G16: 4 | K16: Oct | L16: 0 | M16: 19 | N16: 0.04545454545 | O16: 1
A17: Nov | B17: 20 | C17: 0 | D17: 50 | E17: 10 | F17: 0.1851851852 | G17: 1 | K17: Nov | L17: 0 | M17: 11 | N17: 0.03703703704 | O17: 1
A18: Dec | B18: 20 | C18: 0.5 | D18: 24 | E18: 10 | F18: 0.3557142857 | G18: 1 | K18: Dec | L18: 0 | M18: 18 | N18: 0.07142857143 | O18: 1
K19: Annual | L19: =AVERAGE(L7:L18) -> 0 | M19: =MAX(M7:M18) -> 19 | N19: =AVERAGE(N7:N18) -> 0.07266837603 | O19: =MAX(O7:O18) -> 2
J21: =+A6 -> 2022 | K21: mg/Nm3 | L21: Monthly 1/2 hourly mean | M21: Monthly 1/2 hourly maximum | N21: Monthly daily mean | O21: Monthly daily maximum
J22: A2 | K22: Jan | L22: 0 | M22: 4 | N22: 0.4516129032 | O22: 1
K23: Feb | L23: 0 | M23: 7 | N23: 0.03571428571 | O23: 1
K24: Mar | L24: 0 | M24: 6 | N24: 0 | O24: 0
K25: Apr | L25: 0 | M25: 4 | N25: 0.1333333333 | O25: 2
K26: May | L26: 0 | M26: 18 | N26: 0 | O26: 0
K27: Jun | L27: 0 | M27: 4 | N27: 0 | O27: 0
K28: Jul | L28: 0 | M28: 15 | N28: 0.06666666667 | O28: 1
K29: Aug | L29: 0 | M29: 6 | N29: 0.1923076923 | O29: 1
K30: Sep | L30: 0 | M30: 12 | N30: 0.08333333333 | O30: 1
K31: Oct | L31: 0 | M31: 384 | N31: 0.1785714286 | O31: 4
K32: Nov | L32: 0 | M32: 50 | N32: 0.3333333333 | O32: 1
K33: Dec | L33: 1 | M33: 24 | N33: 0.64 | O33: 1
K34: Annual | L34: =AVERAGE(L22:L33) -> 0.08333333333 | M34: =MAX(M22:M33) -> 384 | N34: =AVERAGE(N22:N33) -> 0.1762394147 | O34: =MAX(O22:O33) -> 4
B35: North Midlands Operations Limited
C43: 01179 372 811
C45: emily.hingston@sol-environment.co.uk
A48: Comments :

Sheet Particulates
A1: =+'Cover Page'!$B$29 -> Annual Performance Report 2022 | E1: =+'Cover Page'!$B$33 -> Wolverhampton Energy from Waste Facility
A3: Monitoring of Particulate matter emissions | D3: Whole Installation | G3: See Notes in Cell Q3 | J3: =+A3 -> Monitoring of Particulate matter emissions | N3: Per Combustion Line | Q3: Notes:
Q4: User to add logic to complete Whole installation, Table A5:G18. From the data in Per Combustion Line, Table J6:O79, subject to No. of lines installed
A5: mg/Nm3 | B5: 1/2 Hourly Reference Periods | E5: Daily Reference Periods
A6: =+'Cover Page'!C39 -> 2022 | B6: 1/2 hourly PM ELV | C6: Monthly 1/2 hourly mean | D6: Highest 1/2 hourly maximum | E6: Daily PM ELV | F6: Monthly daily mean | G6: Highest daily maximum | J6: =+A6 -> 2022 | K6: mg/Nm3 | L6: Monthly 1/2 hourly mean | M6: Monthly 1/2 hourly maximum | N6: Monthly daily mean | O6: Monthly daily maximum
A7: Jan | B7: 30 | C7: =AVERAGE(L7,L22) -> 1 | D7: =MAX(M7,M22) -> 3 | E7: 10 | F7: =AVERAGE(N7,N22) -> 1.092592593 | G7: =MAX(O7,O22) -> 2 | J7: A1 | K7: Jan | L7: 1 | M7: 3 | N7: 1.185185185 | O7: 2
A8: Feb | B8: 30 | C8: =AVERAGE(L8,L23) -> 0.5 | D8: =MAX(M8,M23) -> 4 | E8: 10 | F8: =AVERAGE(N8,N23) -> 0.9642857143 | G8: =MAX(O8,O23) -> 4 | K8: Feb | L8: 1 | M8: 4 | N8: 1.5 | O8: 4
A9: Mar | B9: 30 | C9: 1 | D9: 4 | E9: 10 | F9: 1.050595238 | G9: 3 | K9: Mar | L9: 1 | M9: 4 | N9: 1.142857143 | O9: 3 | Q9: Whole Installation table A5:G18:
A10: Apr | B10: 30 | C10: 2 | D10: 8 | E10: 10 | F10: 2.333333333 | G10: 6 | K10: Apr | L10: 1 | M10: 3 | N10: 1.3 | O10: 2 | Q10: Mean: for 1/2 hourly and daily periods calculate mean of values across all operational combustion lines for the month
A11: May | B11: 30 | C11: 2 | D11: 4 | E11: 10 | F11: 1.841811414 | G11: 3 | K11: May | L11: 2 | M11: 4 | N11: 1.64516129 | O11: 3
A12: Jun | B12: 30 | C12: 1.5 | D12: 91 | E12: 10 | F12: 1.416666667 | G12: 3 | K12: Jun | L12: 1 | M12: 91 | N12: 0.7666666667 | O12: 3
A13: Jul | B13: 30 | C13: 1 | D13: 15 | E13: 10 | F13: 1.130107527 | G13: 8 | K13: Jul | L13: 0 | M13: 1 | N13: 0.1935483871 | O13: 1 | Q13: Maximum: for 1/2 hourly and daily periods use the highest value across all operational combustion lines for the month
A14: Aug | B14: 30 | C14: 1.5 | D14: 7 | E14: 10 | F14: 1.005128205 | G14: 3 | K14: Aug | L14: 1 | M14: 6 | N14: 0.4333333333 | O14: 1
A15: Sep | B15: 30 | C15: 1 | D15: 4 | E15: 10 | F15: 0.175 | G15: 1 | K15: Sep | L15: 1 | M15: 4 | N15: 0.1 | O15: 1
A16: Oct | B16: 30 | C16: 0.5 | D16: 7 | E16: 10 | F16: 0.2678571429 | G16: 1 | K16: Oct | L16: 0 | M16: 2 | N16: 0 | O16: 0
A17: Nov | B17: 30 | C17: 0.5 | D17: 2 | E17: 10 | F17: 0.2592592593 | G17: 1 | K17: Nov | L17: 0 | M17: 1 | N17: 0 | O17: 0
A18: Dec | B18: 30 | C18: 0.5 | D18: 17 | E18: 10 | F18: 0.2757142857 | G18: 2 | K18: Dec | L18: 0 | M18: 4 | N18: 0.07142857143 | O18: 1
K19: Annual | L19: =AVERAGE(L7:L18) -> 0.75 | M19: =MAX(M7:M18) -> 91 | N19: =AVERAGE(N7:N18) -> 0.6948483814 | O19: =MAX(O7:O18) -> 4
J21: =+A6 -> 2022 | K21: mg/Nm3 | L21: Monthly 1/2 hourly mean | M21: Monthly 1/2 hourly maximum | N21: Monthly daily mean | O21: Monthly daily maximum
J22: A2 | K22: Jan | L22: 1 | M22: 2 | N22: 1 | O22: 1
K23: Feb | L23: 0 | M23: 1 | N23: 0.4285714286 | O23: 1
K24: Mar | L24: 1 | M24: 3 | N24: 0.9583333333 | O24: 2
K25: Apr | L25: 3 | M25: 8 | N25: 3.366666667 | O25: 6
K26: May | L26: 2 | M26: 4 | N26: 2.038461538 | O26: 3
K27: Jun | L27: 2 | M27: 6 | N27: 2.066666667 | O27: 3
K28: Jul | L28: 2 | M28: 15 | N28: 2.066666667 | O28: 8
K29: Aug | L29: 2 | M29: 7 | N29: 1.576923077 | O29: 3
K30: Sep | L30: 1 | M30: 2 | N30: 0.25 | O30: 1
K31: Oct | L31: 1 | M31: 7 | N31: 0.5357142857 | O31: 1
K32: Nov | L32: 1 | M32: 2 | N32: 0.5185185185 | O32: 1
K33: Dec | L33: 1 | M33: 17 | N33: 0.48 | O33: 2
K34: Annual | L34: =AVERAGE(L22:L33) -> 1.416666667 | M34: =MAX(M22:M33) -> 17 | N34: =AVERAGE(N22:N33) -> 1.273876848 | O34: =MAX(O22:O33) -> 8
B35: North Midlands Operations Limited
C43: 01179 372 811
C45: emily.hingston@sol-environment.co.uk
A48: Comments :

Sheet CO 95% 10 min
A1: =+'Cover Page'!$B$29 -> Annual Performance Report 2022 | E1: =+'Cover Page'!$B$33 -> Wolverhampton Energy from Waste Facility
A3: Monitoring of Carbon Monoxide (10-minute avg) | E3: Whole Installation | H3: See Notes in Cell S3 | J3: =+A3 -> Monitoring of Carbon Monoxide (10-minute avg) | O3: Per Combustion Line | Q3: Notes: | S3: Notes:
S4: User to add logic to complete Whole installation, Table A5:H18. From the data in Per Combustion Line, Table K6:Q79, subject to No. of lines installed
A5: mg/Nm3 | B5: 10-minute Reference Periods | F5: Daily Reference Periods
A6: =+'Cover Page'!C39 -> 2022 | B6: 95%ile 10-min avg CO ELV | C6: 95%ile 10-min avg maximum | D6: Monthly CO 10-min avg mean | E6: 10-min avg maximum | F6: Daily CO ELV | G6: Monthly daily mean | H6: Highest daily maximum | K6: =+A6 -> 2022 | L6: mg/Nm3 | M6: 95%ile 10-min avg maximum | N6: Monthly CO 10-min avg mean | O6: 10-min avg maximum | P6: Monthly daily mean | Q6: Monthly daily maximum
A7: Jan | B7: 150 | C7: =MAX(M7,M22) -> 39 | D7: =AVERAGE(N7,N22) -> 9.5 | E7: =MAX(O7,O22) -> 21 | F7: 50 | G7: =AVERAGE(P7,P22) -> 9.712664277 | H7: =MAX(Q7,Q22) -> 21 | K7: A1 | L7: Jan | M7: 39 | N7: 12 | O7: 21 | P7: 12.2962963 | Q7: 21
A8: Feb | B8: =+B7 -> 150 | C8: =MAX(M8,M23) -> 52 | D8: =AVERAGE(N8,N23) -> 7.5 | E8: =MAX(O8,O23) -> 18 | F8: =+F7 -> 50 | G8: =AVERAGE(P8,P23) -> 7.553571429 | H8: =MAX(Q8,Q23) -> 18 | L8: Feb | M8: 28 | N8: 9 | O8: 18 | P8: 8.857142857 | Q8: 18
A9: Mar | B9: =+B8 -> 150 | C9: 88 | D9: 7 | E9: 24 | F9: =+F8 -> 50 | G9: 6.917857143 | H9: 24 | L9: Mar | M9: 63 | N9: 8 | O9: 14 | P9: 7.8 | Q9: 17 | S9: Whole Installation table A5:H18:
A10: Apr | B10: 150 | C10: 33 | D10: 6 | E10: 12 | F10: 50 | G10: 6.05 | H10: 12 | L10: Apr | M10: 33 | N10: 6 | O10: 12 | P10: 6.333333333 | Q10: 12 | S10: Mean: for 10-min and daily periods use average of all operational combustion lines.
A11: May | B11: 150 | C11: 51 | D11: 5.5 | E11: 14 | F11: 50 | G11: 5.547146402 | H11: 14 | L11: May | M11: 51 | N11: 7 | O11: 14 | P11: 6.709677419 | Q11: 14
A12: Jun | B12: 150 | C12: 31 | D12: 4.5 | E12: 11 | F12: 50 | G12: 4.15862069 | H12: 11 | L12: Jun | M12: 22 | N12: 4 | O12: 11 | P12: 3.8 | Q12: 11
A13: Jul | B13: 150 | C13: 171 | D13: 5.5 | E13: 33 | F13: 50 | G13: 5.52688172 | H13: 33 | L13: Jul | M13: 171 | N13: 5 | O13: 33 | P13: 5.387096774 | Q13: 33 | S13: Maximum: for 10-min and daily periods use the highest of all operational combustion lines in any month.
A14: Aug | B14: 150 | C14: 48 | D14: 7 | E14: 14 | F14: 50 | G14: 6.838461538 | H14: 14 | L14: Aug | M14: 48 | N14: 8 | O14: 14 | P14: 7.6 | Q14: 14
A15: Sep | B15: 150 | C15: 190 | D15: 12.5 | E15: 36 | F15: 50 | G15: 10.44545455 | H15: 20 | L15: Sep | M15: 190 | N15: 14 | O15: 36 | P15: 10.8 | Q15: 16
A16: Oct | B16: 150 | C16: 129 | D16: 14.5 | E16: 85 | F16: 50 | G16: 13.6900161 | H16: 50 | L16: Oct | M16: 129 | N16: 15 | O16: 45 | P16: 15.56521739 | Q16: 45
A17: Nov | B17: 150 | C17: 194 | D17: 11.5 | E17: 41 | F17: 50 | G17: 11.23860399 | H17: 41 | L17: Nov | M17: 169 | N17: 11 | O17: 36 | P17: 11.59259259 | Q17: 36
A18: Dec | B18: 150 | C18: 57 | D18: 9.5 | E18: 23 | F18: 50 | G18: 9.440714286 | H18: 23 | L18: Dec | M18: 47 | N18: 10 | O18: 16 | P18: 10.32142857 | Q18: 16
L19: Annual | M19: =AVERAGE(M7:M18) -> 82.5 | N19: =AVERAGE(N7:N18) -> 9.083333333 | O19: =MAX(O7:O18) -> 45 | P19: =AVERAGE(P7:P18) -> 8.92189877 | Q19: =MAX(Q7:Q18) -> 45
K21: =+A6 -> 2022 | L21: mg/Nm3 | M21: 95%ile 10-min avg maximum | N21: Monthly CO 10-min avg mean | O21: 10-min avg maximum | P21: Monthly daily mean | Q21: Monthly daily maximum
K22: A2 | L22: Jan | M22: 34 | N22: 7 | O22: 14 | P22: 7.129032258 | Q22: 14
L23: Feb | M23: 52 | N23: 6 | O23: 17 | P23: 6.25 | Q23: 17
L24: Mar | M24: 88 | N24: 6 | O24: 24 | P24: 6.035714286 | Q24: 24
L25: Apr | M25: 33 | N25: 6 | O25: 10 | P25: 5.766666667 | Q25: 10
L26: May | M26: 23 | N26: 4 | O26: 10 | P26: 4.384615385 | Q26: 10
L27: Jun | M27: 31 | N27: 5 | O27: 10 | P27: 4.517241379 | Q27: 10
L28: Jul | M28: 23 | N28: 6 | O28: 10 | P28: 5.666666667 | Q28: 10
L29: Aug | M29: 17 | N29: 6 | O29: 8 | P29: 6.076923077 | Q29: 8
L30: Sep | M30: 89 | N30: 11 | O30: 33 | P30: 10.09090909 | Q30: 20
L31: Oct | M31: 77 | N31: 14 | O31: 85 | P31: 11.81481481 | Q31: 50
L32: Nov | M32: 194 | N32: 12 | O32: 41 | P32: 10.88461538 | Q32: 41
L33: Dec | M33: 57 | N33: 9 | O33: 23 | P33: 8.56 | Q33: 23
L34: Annual | M34: =AVERAGE(M22:M33) -> 59.83333333 | N34: =AVERAGE(N22:N33) -> 7.666666667 | O34: =MAX(O22:O33) -> 85 | P34: =AVERAGE(P22:P33) -> 7.264766584 | Q34: =MAX(Q22:Q33) -> 50
B35: North Midlands Operations Limited
C43: 01179 372 811
C45: emily.hingston@sol-environment.co.uk
A48: Comments :
A49: Environment Agency explanatory note: The 10-minute average ELV is based on the “95th percentile”. In this case this means that 95% of the 10 minute averages in the relevant 24-hour period (i.e. 137) must be below 150 mg/Nm3, and 5% (i.e. 7) are allowed to be any value above 150 mg/Nm3. Whilst we expect operators to minimise CO emissions at all times, it is perfectly acceptable for the value of the maximum 10-minute average to be above 150 mg/Nm3, provided the 95th percentile ELV has been met for that period.

Sheet NH3
A1: =+'Cover Page'!$B$29 -> Annual Performance Report 2022 | E1: =+'Cover Page'!$B$33 -> Wolverhampton Energy from Waste Facility
A3: Monitoring of Ammnonia emissions | D3: Whole Installation | G3: See Notes in Cell Q3 | J3: =+A3 -> Monitoring of Ammnonia emissions | N3: Per Combustion Line | Q3: Notes:
Q4: User to add logic to complete Whole installation, Table A5:G18. From the data in Per Combustion Line, Table J6:O79, subject to No. of lines installed
A5: mg/Nm3 | B5: 1/2 Hourly Reference Periods | E5: Daily Reference Periods
A6: =+'Cover Page'!C39 -> 2022 | B6: 1/2 hourly NH3 ELV | C6: Monthly 1/2 hourly mean | D6: Highest 1/2 hourly maximum | E6: Daily NH3 ELV | F6: Monthly daily mean | G6: Highest daily maximum | J6: =+A6 -> 2022 | K6: mg/Nm3 | L6: Monthly 1/2 hourly mean | M6: Monthly 1/2 hourly maximum | N6: Monthly daily mean | O6: Monthly daily maximum
A7: Jan | B7: 0 | C7: =AVERAGE(L7,L22) -> 0 | D7: =MAX(M7,M22) -> 41 | E7: 10 | F7: =AVERAGE(N7,N22) -> 0.3022700119 | G7: =MAX(O7,O22) -> 4 | J7: A1 | K7: Jan | L7: 0 | M7: 41 | N7: 0.1851851852 | O7: 2
A8: Feb | B8: =+B7 -> 0 | C8: =AVERAGE(L8,L23) -> 2 | D8: =MAX(M8,M23) -> 55 | E8: =+E7 -> 10 | F8: =AVERAGE(N8,N23) -> 2 | G8: =MAX(O8,O23) -> 8 | K8: Feb | L8: 2 | M8: 55 | N8: 2.285714286 | O8: 8
A9: Mar | B9: =+B8 -> 0 | C9: 2.5 | D9: 48 | E9: =+E8 -> 10 | F9: 2.410714286 | G9: 7 | K9: Mar | L9: 4 | M9: 48 | N9: 3.571428571 | O9: 7 | Q9: Whole Installation table A5:G18:
A10: Apr | B10: 0 | C10: 2.5 | D10: 46 | E10: 10 | F10: 2.683333333 | G10: 5 | K10: Apr | L10: 3 | M10: 29 | N10: 3.5 | O10: 5 | Q10: Mean: for 1/2 hourly and daily periods calculate mean of values across all operational combustion lines for the month
A11: May | B11: 0 | C11: 2 | D11: 41 | E11: 10 | F11: 1.92369727 | G11: 6 | K11: May | L11: 3 | M11: 27 | N11: 3.193548387 | O11: 6
A12: Jun | B12: 0 | C12: 2 | D12: 141 | E12: 10 | F12: =AVERAGE(N12,N27) -> 1.7 | G12: =MAX(O12,O27) -> 9 | K12: Jun | L12: 3 | M12: 85 | N12: 2.633333333 | O12: 5
A13: Jul | B13: 0 | C13: =AVERAGE(L13,L27) -> 2 | D13: =MAX(M13,M27) -> 141 | E13: 10 | F13: =AVERAGE(N13,N27) -> 2.044623656 | G13: =MAX(O13,O27) -> 9 | K13: Jul | L13: 3 | M13: 50 | N13: 3.322580645 | O13: 6 | Q13: Maximum: for 1/2 hourly and daily periods use the highest value across all operational combustion lines for the month
A14: Aug | B14: 0 | C14: 2.5 | D14: 24 | E14: 10 | F14: 2.402564103 | G14: 8 | K14: Aug | L14: 5 | M14: 24 | N14: 4.766666667 | O14: 8
A15: Sep | B15: 0 | C15: 5 | D15: 82 | E15: 10 | F15: 2.983333333 | G15: 8 | K15: Sep | L15: 9 | M15: 82 | N15: 5.3 | O15: 8
A16: Oct | B16: 0 | C16: 3.5 | D16: 617 | E16: 10 | F16: 3.189935065 | G16: 8 | K16: Oct | L16: 5 | M16: 59 | N16: 5.272727273 | O16: 8
A17: Nov | B17: 0 | C17: 3 | D17: 51 | E17: 10 | F17: 2.962962963 | G17: 7 | K17: Nov | L17: 4 | M17: 28 | N17: 4.296296296 | O17: 7
A18: Dec | B18: 0 | C18: 3 | D18: 40 | E18: 10 | F18: 3.03 | G18: 11 | K18: Dec | L18: 4 | M18: 40 | N18: 3.5 | O18: 5
K19: Annual | L19: =AVERAGE(L7:L18) -> 3.75 | M19: =MAX(M7:M18) -> 85 | N19: =AVERAGE(N7:N18) -> 3.485623387 | O19: =MAX(O7:O18) -> 8
J21: =+A6 -> 2022 | K21: mg/Nm3 | L21: Monthly 1/2 hourly mean | M21: Monthly 1/2 hourly maximum | N21: Monthly daily mean | O21: Monthly daily maximum
J22: A2 | K22: Jan | L22: 0 | M22: 29 | N22: 0.4193548387 | O22: 4
K23: Feb | L23: 2 | M23: 38 | N23: 1.714285714 | O23: 4
K24: Mar | L24: 1 | M24: 37 | N24: 1.25 | O24: 3
K25: Apr | L25: 2 | M25: 46 | N25: 1.866666667 | O25: 5
K26: May | L26: 1 | M26: 41 | N26: 0.6538461538 | O26: 3
K27: Jun | L27: 1 | M27: 141 | N27: 0.7666666667 | O27: 9
K28: Jul | L28: 0 | M28: 13 | N28: 0.2333333333 | O28: 1
K29: Aug | L29: 0 | M29: 10 | N29: 0.03846153846 | O29: 1
K30: Sep | L30: 1 | M30: 7 | N30: 0.6666666667 | O30: 3
K31: Oct | L31: 2 | M31: 617 | N31: 1.107142857 | O31: 5
K32: Nov | L32: 2 | M32: 51 | N32: 1.62962963 | O32: 6
K33: Dec | L33: 2 | M33: 32 | N33: 2.56 | O33: 11
K34: Annual | L34: =AVERAGE(L22:L33) -> 1.166666667 | M34: =MAX(M22:M33) -> 617 | N34: =AVERAGE(N22:N33) -> 1.075504505 | O34: =MAX(O22:O33) -> 11
B35: North Midlands Operations Limited
C43: 01179 372 811
C45: emily.hingston@sol-environment.co.uk
A48: Comments :
A49: An indicated ELV value of zero in the table above means that no ammonia limit is set in the permit.
